bitfinex-derivatives/quotes_ETHF0:USTF0_20260128
["timestamp","ask_amount","ask_price","bid_price","bid_amount"]
[1769623443513,3.60201525,3007.1,3005.6,1.26561031]
[1769623443712,40.8,3007.9,3005.8,1.01603274]
[1769623443914,3.60294391,3007.8,3005.8,1.01603274]
[1769623444117,3.60294391,3007.7,3005.8,1.01603274]
[1769623444410,3.60294391,3007.6,3005.8,1.01603274]
[1769623444615,3.60294391,3007.5,3005.8,1.01603274]
[1769623444821,3.60294391,3007.4,3005.8,1.01603274]
[1769623445122,0.16644,3008.0,3006.0,1.01353309]
[1769623445324,3.60387034,3007.9,3006.0,1.18008309]
[1769623445617,3.60387034,3007.8,3006.0,1.18008309]
[1769623445919,0.00382813,3008.1,3006.2,1.18533917]
[1769623446122,3.60536048,3008.0,3006.2,1.18533917]
[1769623446417,3.60536048,3007.9,3006.2,1.18533917]
[1769623446614,3.60536048,3007.8,3006.2,1.18533917]
[1769623446829,0.00382813,3008.1,3006.4,1.01792613]
[1769623448232,0.00382813,3008.1,3006.6,1.01677885]
[1769623449127,0.00382813,3008.1,3006.6,1.18329885]
[1769623449432,0.00382813,3008.1,3006.8,1.01592361]
[1769623449823,0.00382813,3008.1,3006.8,4.34592361]
[1769623450134,0.00382813,3008.1,3006.9,1.01496041]
[1769623450330,2.0,3008.4,3007.1,1.01496041]
[1769623450527,2.0,3008.4,3007.1,1.18145041]
[1769623450923,2.0,3008.4,3007.1,1.01496041]
[1769623451331,2.00347838,3008.4,3007.1,1.01496041]
[1769623453036,8.61992064,3010.5,3007.7,0.16646]
[1769623453037,0.88646998,3009.6,3007.7,0.16646]
[1769623453238,1.05283998,3009.3,3007.8,0.82854396]
[1769623453432,0.88646998,3009.1,3007.8,0.82854396]
[1769623453734,0.88646998,3008.8,3007.1,0.82854396]
[1769623454037,0.88646998,3008.6,3007.1,0.83244412]
[1769623460437,0.00363841,3008.8,3007.3,0.82854396]
[1769623460937,0.00363841,3008.8,3007.3,0.99502396]
[1769623461435,1.05282998,3009.6,3008.1,0.82854396]
[1769623461633,0.88646998,3009.4,3008.1,0.82854396]
[1769623462238,0.88646998,3009.4,3007.8,0.82854396]
[1769623462538,0.88646998,3009.2,3007.8,0.82854396]
[1769623463136,0.89078558,3009.4,3007.8,0.82854396]
[1769623463739,0.89078558,3009.4,3007.8,0.99499396]
[1769623464137,0.0043156,3009.4,3008.0,0.82854396]
[1769623464540,0.88646998,3009.8,3008.2,0.99497396]
[1769623464735,0.88646998,3009.8,3008.2,4.15754396]
[1769623465134,0.88646998,3009.8,3008.3,0.73761273]
[1769623465636,0.00325544,3009.8,3008.7,0.73761273]
[1769623466431,0.00325544,3009.8,3008.7,0.90401273]
[1769623466636,0.72577734,3010.5,3008.9,0.73761273]
[1769623467743,0.67709994,3010.3,3008.9,0.73761273]
[1769623469339,0.00363924,3010.5,3008.9,0.73761273]
[1769623469641,0.67709994,3010.3,3008.9,0.73761273]
[1769623470943,0.00363924,3010.5,3008.9,0.90400273]
[1769623471138,0.00363924,3010.5,3009.1,0.72719698]
[1769623471929,0.00363924,3010.5,3009.3,0.72719698]
[1769623472232,0.00363924,3010.5,3009.5,0.89355698]
[1769623472435,0.67709994,3011.4,3009.9,0.16634]
[1769623472636,0.67709994,3011.4,3010.0,0.72719698]
[1769623473245,0.47638679,3011.3,3010.0,0.72719698]
[1769623473443,0.00341424,3011.3,3010.0,0.72719698]
[1769623473643,0.67709994,3011.2,3010.0,0.72719698]
[1769623474543,0.67709994,3011.2,3009.6,0.72719698]
[1769623477344,0.67709994,3011.2,3009.7,0.72719698]
[1769623478544,0.00341424,3011.3,3009.7,0.89354698]
[1769623478745,0.00341424,3011.3,3009.9,0.72719698]
[1769623479748,0.00341424,3011.3,3010.0,0.72719698]
[1769623480445,0.00341424,3011.3,3010.0,0.89352698]
[1769623481450,0.68051418,3011.3,3010.0,0.89352698]
[1769623482042,0.68051418,3011.3,3009.7,0.72719698]
[1769623482342,0.68051418,3011.3,3009.7,0.89354698]
[1769623482544,0.68051418,3011.3,3009.4,5.278]
[1769623482545,0.68051418,3011.3,3009.9,0.72719698]
[1769623483749,0.00341424,3011.3,3010.1,0.72719698]
[1769623484941,0.00341424,3011.3,3010.3,0.89350698]
[1769623486148,0.67709994,3012.0,3010.5,0.72719698]
[1769623487247,0.6801636,3012.0,3010.5,0.72719698]
[1769623487449,0.67709994,3011.8,3010.5,0.72719698]
[1769623487752,0.67709994,3011.8,3009.9,0.16634]
[1769623487753,0.47605708,3011.7,3010.2,0.72719698]
[1769623488048,0.67709994,3011.6,3010.2,0.72719698]
[1769623488355,0.67709994,3011.4,3009.8,0.72719698]
[1769623488541,0.67709994,3011.2,3009.8,0.72719698]
[1769623488739,0.67709994,3011.0,3009.8,0.72719698]
[1769623489059,0.67709994,3011.3,3009.8,0.72719698]
[1769623489351,0.67709994,3011.1,3009.8,0.72719698]
[1769623489949,0.67709994,3011.5,3009.8,0.72719698]
[1769623490144,0.4767511,3011.4,3009.8,0.89353698]
[1769623490344,0.4771439,3011.3,3009.8,0.89353698]
[1769623490547,0.67709994,3011.5,3009.8,0.89353698]
[1769623490745,0.67709994,3011.3,3009.8,0.89353698]
[1769623491151,0.47715784,3011.2,3009.8,0.89353698]
[1769623491349,0.67709994,3011.3,3009.8,0.89353698]
[1769623491551,0.4774711,3011.2,3010.0,0.72719698]
[1769623491751,0.67709994,3011.3,3010.0,0.72719698]
[1769623491952,0.47746974,3011.2,3010.0,0.72719698]
[1769623492152,0.67709994,3011.3,3010.0,0.72719698]
[1769623492353,0.47746845,3011.2,3010.0,0.72719698]
[1769623492552,0.67709994,3011.3,3010.0,0.72719698]
[1769623492756,0.4777078,3011.2,3010.0,0.72719698]
[1769623493052,0.67709994,3011.3,3010.0,0.72719698]
[1769623493260,0.47769749,3011.2,3010.0,0.72719698]
[1769623493450,0.4780343,3011.1,3010.0,0.72719698]
[1769623493650,0.67709994,3011.3,3010.0,0.72719698]
[1769623493845,0.47804368,3011.2,3010.0,0.72719698]
[1769623494050,0.47804368,3011.1,3010.0,0.72719698]
[1769623494255,0.67709994,3011.6,3010.0,0.72719698]
[1769623494452,4.66200583,3011.5,3010.0,0.72719698]
[1769623494761,3.98490096,3011.4,3010.0,0.72719698]
[1769623495058,0.00306366,3012.0,3009.9,5.52434]
[1769623495059,0.47833582,3011.3,3010.2,0.58409684]
[1769623495256,0.47833582,3011.2,3010.2,0.58409684]
[1769623495446,0.47833582,3011.1,3010.2,0.58409684]
[1769623495654,0.59038822,3011.6,3010.2,0.58409684]
[1769623495854,0.59038822,3011.4,3010.2,0.58409684]
[1769623496057,4.57720219,3011.3,3010.2,0.58409684]
[1769623496250,0.47859507,3011.2,3010.2,0.58409684]
[1769623496451,0.47859507,3011.1,3010.2,0.58409684]
[1769623496657,0.59038822,3011.3,3010.2,0.58409684]
[1769623496658,0.47859507,3011.0,3010.2,0.58409684]
[1769623496953,0.47859507,3010.9,3010.2,0.58409684]
[1769623497152,0.59038822,3011.3,3010.2,0.58409684]
[1769623497355,3.98829516,3011.2,3010.2,0.58409684]
[1769623497554,1.06892944,3011.1,3010.2,0.58409684]
[1769623497753,0.47854122,3011.0,3010.2,0.58409684]
[1769623498354,0.47854122,3011.0,3009.7,0.58409684]
[1769623498355,4.10303608,3010.9,3009.7,0.58409684]
[1769623498551,0.47854122,3010.8,3009.7,0.58409684]
[1769623499456,1.06892944,3010.8,3009.7,0.58409684]
[1769623499762,1.06892944,3010.7,3009.7,0.58409684]
[1769623499956,0.59038822,3010.7,3009.7,0.58409684]
[1769623500360,0.47942815,3010.6,3009.7,0.58409684]
[1769623500554,0.59038822,3010.6,3009.4,0.58409684]
[1769623500754,0.59038822,3010.2,3008.8,0.58409684]
[1769623500950,0.59038822,3009.9,3008.5,0.58409684]
[1769623501157,0.59038822,3009.7,3008.5,0.58409684]
[1769623501356,0.47877571,3009.6,3008.5,0.58409684]
[1769623501556,0.59038822,3009.7,3008.5,0.58409684]
[1769623501868,0.47878336,3009.6,3008.5,0.58719333]
[1769623502165,0.00314309,3009.7,3008.6,0.58409684]
[1769623502465,0.00314309,3009.7,3008.5,0.16950649]
[1769623502466,0.59038822,3010.5,3008.8,0.58409684]
[1769623502667,3.99186206,3010.4,3008.8,0.58409684]
[1769623502864,3.99186206,3010.3,3008.8,0.58409684]
[1769623503061,0.47844855,3010.2,3008.8,0.58409684]
[1769623503363,0.00342063,3010.2,3009.0,0.58409684]
[1769623503561,0.59380885,3010.2,3009.0,0.58409684]
[1769623503757,0.59038822,3010.0,3008.6,3.91009684]
[1769623503960,0.59038822,3009.8,3008.5,0.00309649]
[1769623504156,0.16633,3010.0,3008.5,0.00309649]
[1769623504157,0.59038822,3009.6,3008.5,0.00309649]
[1769623505164,0.59380885,3010.2,3008.5,0.58719333]
[1769623505365,0.59380885,3010.2,3008.6,0.58409684]
[1769623506967,0.59380885,3010.2,3008.7,0.58409684]
[1769623508365,0.59380885,3010.2,3008.8,0.58409684]
[1769623508569,0.00342063,3010.2,3008.9,0.58409684]
[1769623509255,0.00342063,3010.2,3009.0,0.58409684]
[1769623510161,0.00342063,3010.2,3009.1,0.58409684]
[1769623511262,0.59038822,3011.0,3009.4,0.58409684]
[1769623511862,0.16626,3011.4,3009.5,0.58409684]
[1769623512070,0.59038822,3011.2,3009.7,0.58409684]
[1769623512664,0.16984283,3011.4,3009.7,0.58409684]
[1769623512665,0.59038822,3011.0,3009.7,0.58409684]
[1769623513269,0.59038822,3010.8,3009.2,0.58409684]
[1769623514763,0.59038822,3010.8,3009.2,0.75047684]
[1769623515071,0.59038822,3010.8,3009.4,0.58409684]
[1769623515465,0.59038822,3011.3,3009.5,0.58409684]
[1769623515669,0.59038822,3011.1,3009.5,0.58409684]
[1769623516372,0.59038822,3011.1,3009.6,0.58409684]
[1769623518172,0.59397105,3011.4,3009.6,0.58409684]
[1769623518376,0.59038822,3011.2,3009.6,0.58409684]
[1769623518862,0.59038822,3011.2,3009.7,0.58409684]
[1769623519669,0.59397105,3011.4,3009.9,0.58409684]
[1769623520571,0.59038822,3011.2,3009.9,0.58409684]
[1769623523580,0.59038822,3011.0,3009.3,0.58409684]
[1769623523869,0.59038822,3010.8,3009.3,0.58409684]
[1769623526281,0.48703788,3011.3,3009.5,0.4989607]
[1769623526469,0.48703788,3011.2,3009.8,0.4989607]
[1769623531481,0.47837784,3011.0,3009.8,0.4989607]
[1769623531783,0.47837784,3010.8,3009.3,0.50273546]
[1769623532084,0.47837784,3010.6,3009.3,0.50273546]
[1769623534290,0.47837784,3010.4,3009.3,0.50273546]
[1769623534778,0.64468784,3010.4,3008.9,0.50273546]
[1769623534984,0.47837784,3010.2,3008.9,0.50273546]
[1769623536093,0.47837784,3010.2,3008.6,0.50273546]
[1769623536290,0.47837784,3010.0,3008.6,0.50273546]
[1769623537185,0.47837784,3009.7,3008.5,0.00309649]
[1769623537386,0.47837784,3009.5,3008.5,0.00309649]
[1769623537689,0.47837784,3009.3,3008.5,0.00309649]
[1769623538580,0.47837784,3009.1,3007.8,0.50273546]
[1769623538782,0.47837784,3009.1,3008.0,0.50273546]
[1769623539391,0.16636,3009.6,3008.0,0.50273546]
[1769623539689,0.94485237,3009.5,3008.0,0.50666964]
[1769623539985,0.47837784,3009.3,3008.0,0.50666964]
[1769623541289,0.47837784,3009.1,3008.0,0.50666964]
[1769623542488,0.47837784,3009.5,3008.0,0.50666964]
[1769623547287,0.16638,3009.2,3008.0,0.50666964]
[1769623547493,0.47837784,3009.1,3008.0,0.00393418]
[1769623547996,0.47837784,3009.1,3008.0,0.50666964]
[1769623550091,0.47837784,3009.5,3008.0,0.50666964]
[1769623550292,0.47837784,3009.5,3008.1,0.50273546]
[1769623550999,0.00311358,3009.6,3008.1,0.66917546]
[1769623551197,0.00311358,3009.6,3008.2,0.50273546]
[1769623552301,0.00311358,3009.6,3008.4,0.50273546]
[1769623553498,0.00311358,3009.6,3008.6,0.50273546]
[1769623553797,0.48149142,3009.6,3008.6,0.50273546]
[1769623554215,0.48149142,3009.6,3008.1,0.50273546]
[1769623559003,0.40802769,3009.5,3008.1,0.50273546]
[1769623559709,0.40802769,3009.4,3008.1,0.50273546]
[1769623560006,0.40802769,3009.4,3008.0,0.00393418]
[1769623560399,0.40802769,3009.2,3008.0,0.00393418]
[1769623560605,0.40802769,3009.2,3007.6,0.40574768]
[1769623561101,0.40802769,3009.2,3007.7,0.40574768]
[1769623561301,0.40802769,3009.2,3007.9,0.40574768]
[1769623561707,0.40802769,3009.5,3008.0,0.40574768]
[1769623561902,0.00311358,3009.6,3008.2,0.40574768]
[1769623562102,0.00311358,3009.6,3008.3,0.40574768]
[1769623562500,0.00311358,3009.6,3008.3,0.40987079]
[1769623563702,0.00311358,3009.6,3008.3,5.73687079]
[1769623563901,0.00311358,3009.6,3008.4,0.40574768]
[1769623564110,0.00311358,3009.6,3008.6,0.40574768]
[1769623565014,0.40802769,3010.1,3008.6,0.40574768]
[1769623565210,0.40802769,3010.1,3008.3,5.33112311]
[1769623565211,0.40802769,3010.4,3008.9,0.40574768]
[1769623565515,0.46748128,3010.3,3008.9,0.40574768]
[1769623565717,0.46748128,3010.2,3008.9,0.40574768]
[1769623566014,0.41090085,3010.3,3008.9,0.40574768]
[1769623566209,0.87541108,3010.2,3008.9,0.40574768]
[1769623566411,0.40802769,3010.2,3009.0,5.73074768]
[1769623566613,0.40802769,3010.2,3009.1,0.40574768]
[1769623567111,0.40802769,3010.2,3008.9,0.40574768]
[1769623568916,0.40802769,3010.0,3008.9,0.40574768]
[1769623569511,0.40802769,3010.0,3008.4,0.40574768]
[1769623569712,0.40802769,3010.0,3008.5,0.40574768]
[1769623570910,0.16919316,3010.3,3008.5,0.40574768]
[1769623570911,0.40802769,3009.8,3008.5,0.40574768]
[1769623574122,0.40802769,3010.1,3008.6,0.40574768]
[1769623574323,0.40802769,3010.1,3008.6,0.57215768]
[1769623574620,0.40802769,3010.1,3008.9,0.40574768]
[1769623575421,0.00287316,3010.3,3008.9,0.40574768]
[1769623576111,0.00287316,3010.3,3008.9,0.57213768]
[1769623576314,0.00287316,3010.3,3009.0,0.40574768]
[1769623577324,0.41090085,3010.3,3009.0,0.40574768]
[1769623577824,0.00287316,3010.3,3009.0,0.57213768]
[1769623578013,0.40802769,3010.9,3009.4,0.40574768]
[1769623578210,0.87502833,3010.8,3009.6,0.40574768]
[1769623578423,0.40802769,3011.2,3009.6,0.40574768]
[1769623578626,0.40802769,3011.0,3009.6,0.40574768]
[1769623578825,0.87499269,3010.9,3009.6,0.40574768]
[1769623579020,0.87499269,3010.8,3009.6,0.40574768]
[1769623579227,0.466965,3010.7,3009.6,0.40574768]
[1769623579522,0.40802769,3010.6,3009.3,0.40574768]
[1769623579721,0.40802769,3010.5,3009.3,2.39774768]
[1769623579917,0.40802769,3010.5,3009.3,0.40574768]
[1769623580622,0.00302015,3010.9,3009.5,0.40574768]
[1769623580826,0.41104784,3010.9,3009.7,0.40574768]
[1769623588931,0.41104784,3010.9,3009.6,0.16635]
[1769623590633,0.41104784,3010.9,3009.7,0.35533558]
[1769623592131,0.00302015,3010.9,3009.7,0.52168558]
[1769623592328,0.00302015,3010.9,3009.8,0.35533558]
[1769623592529,0.00302015,3010.9,3009.9,0.35533558]
[1769623596837,0.35058607,3011.5,3010.3,0.35533558]
[1769623597933,0.00373115,3011.5,3010.4,0.35533558]
[1769623598136,0.00373115,3011.5,3010.6,0.35533558]
[1769623598337,0.00373115,3011.5,3010.6,0.35785128]
[1769623599628,0.35431722,3011.5,3010.6,0.35785128]
[1769623600542,0.35431722,3011.5,3010.6,0.0025157]
[1769623601238,0.35058607,3011.3,3009.8,0.16634]
[1769623601435,0.35058607,3011.3,3009.7,0.35533558]
[1769623601641,0.35058607,3011.1,3009.7,0.35533558]
[1769623602243,0.35058607,3011.1,3009.7,0.35861269]
[1769623604345,0.35058607,3011.1,3009.8,0.35533558]
[1769623605438,0.35058607,3011.4,3009.8,0.35533558]
[1769623605747,0.35058607,3011.4,3009.9,0.35533558]
[1769623606744,0.35058607,3011.4,3010.0,0.35533558]
[1769623607842,0.35058607,3011.4,3009.9,0.16633]
[1769623607843,0.35058607,3011.4,3010.2,0.35533558]
[1769623608442,0.35058607,3011.2,3009.9,0.52166558]
[1769623609144,0.35058607,3011.0,3009.9,0.35533558]
[1769623612643,0.35058607,3011.3,3010.0,0.35533558]
[1769623613245,0.46760483,3011.2,3010.0,0.35533558]
[1769623613450,0.00373115,3011.5,3010.2,0.52165558]
[1769623613650,0.00373115,3011.5,3010.3,0.35533558]
[1769623613852,0.00373115,3011.5,3010.5,0.35533558]
[1769623614052,0.35431722,3011.5,3010.5,0.35533558]
[1769623614251,0.35431722,3011.5,3010.2,0.35533558]
[1769623614452,0.35058607,3011.3,3010.2,0.35533558]
[1769623616354,0.29995435,3011.1,3009.9,0.32814606]
[1769623619050,0.16998115,3011.5,3009.9,0.32814606]
[1769623619051,0.3036855,3011.5,3010.0,0.32814606]
[1769623619257,4.02968303,3011.4,3010.0,0.32814606]
[1769623619455,0.46695733,3011.3,3010.0,0.32814606]
[1769623619762,0.29995435,3011.4,3010.0,0.32814606]
[1769623621155,0.00373115,3011.5,3010.1,0.32814606]
[1769623621356,0.46605967,3011.4,3010.1,0.32814606]
[1769623621561,0.00373115,3011.5,3010.4,0.32814606]
[1769623621752,0.3036855,3011.5,3010.4,0.32814606]
[1769623622450,0.3036855,3011.5,3010.3,0.16632]
[1769623622653,0.3036855,3011.5,3010.3,0.49446606]
[1769623622850,0.3036855,3011.5,3010.3,0.32814606]
[1769623623157,0.29995435,3011.3,3009.8,0.32814606]
[1769623623357,0.00373115,3011.5,3009.8,2.29314606]
[1769623623358,0.29995435,3011.1,3009.8,2.29314606]
[1769623623658,0.29995435,3011.1,3009.9,0.32814606]
[1769623624052,0.29995435,3010.9,3009.9,0.32814606]
[1769623624558,0.29995435,3010.9,3009.7,0.16962711]
[1769623625061,0.29995435,3010.9,3009.7,0.00327711]
[1769623625660,0.29995435,3010.7,3009.7,0.00327711]
[1769623625848,0.29995435,3010.5,3009.3,0.32814606]
[1769623626655,0.29995435,3010.3,3009.1,0.32814606]
[1769623626855,0.29995435,3010.3,3009.1,0.33118969]
[1769623631764,0.29995435,3010.3,3009.2,0.32814606]
[1769623631957,0.29995435,3010.7,3009.2,0.32814606]
[1769623632157,0.29995435,3010.5,3009.2,0.32814606]
[1769623632557,0.29995435,3010.5,3009.3,0.32814606]
[1769623639667,0.29995435,3011.2,3009.4,0.32814606]
[1769623639967,0.29995435,3011.0,3009.5,0.32814606]
[1769623640267,0.29995435,3011.4,3009.8,0.32814606]
[1769623640561,0.00373115,3011.5,3009.9,0.32814606]
[1769623640562,0.29995435,3011.2,3009.9,0.32814606]
[1769623640766,0.29995435,3011.2,3010.0,0.32814606]
[1769623640964,0.00373115,3011.5,3010.1,0.32814606]
[1769623641164,0.29995435,3011.4,3010.1,0.32814606]
[1769623647575,0.29995435,3011.4,3010.2,0.26919117]
[1769623648070,0.00373115,3011.5,3010.4,0.26919117]
[1769623648275,0.26125844,3012.3,3010.7,0.26919117]
[1769623648471,0.26125844,3012.1,3010.7,0.26919117]
[1769623649168,0.26492861,3012.1,3010.7,0.26919117]
[1769623650980,0.26492861,3012.1,3010.8,0.26919117]
[1769623651272,0.26492861,3012.1,3010.3,0.26919117]
[1769623651578,0.26492861,3012.1,3010.4,0.26919117]
[1769623652280,0.26492861,3012.1,3010.5,0.26919117]
[1769623652772,0.26492861,3012.1,3010.6,0.26919117]
[1769623653873,0.26492861,3012.1,3010.7,0.26919117]
[1769623654774,2.0,3012.4,3011.2,0.26919117]
[1769623654974,2.0,3012.4,3010.2,5.276]
[1769623654975,0.88035016,3012.9,3011.7,0.26919117]
[1769623655780,0.8843805,3012.9,3011.7,0.27311382]
[1769623656575,0.62312206,3012.9,3011.9,0.26919117]
[1769623657882,0.26125844,3012.8,3011.9,0.26919117]
[1769623659984,0.62312206,3012.9,3011.9,0.26919117]
[1769623662384,0.62312206,3012.9,3012.0,0.26919117]
[1769623663076,0.62312206,3012.9,3012.1,0.26919117]
[1769623666286,0.62312206,3012.9,3012.2,0.26919117]
[1769623666483,1e-08,3013.1,3012.2,0.26919117]
[1769623666789,0.26449639,3014.0,3012.3,0.26919117]
[1769623666989,40.8,3014.7,3012.3,0.26919117]
[1769623667281,0.16611,3014.0,3012.3,0.26919117]
[1769623667682,0.16906946,3014.0,3012.3,0.26919117]
[1769623668187,0.00295946,3014.0,3012.3,0.26919117]
[1769623668483,0.26125844,3013.8,3012.1,0.26919117]
[1769623668683,0.26125844,3013.8,3012.3,0.26919117]
[1769623669279,0.00295946,3014.0,3013.0,0.26919117]
[1769623669492,0.26125844,3014.3,3013.1,0.26919117]
[1769623670384,0.26501506,3014.3,3013.1,0.26919117]
[1769623671377,0.26501506,3014.3,3013.0,0.16616]
[1769623671578,0.26501506,3014.3,3012.8,0.26919117]
[1769623672586,0.26501506,3014.3,3013.0,0.26919117]
[1769623672794,0.00375662,3014.3,3013.1,0.26919117]
[1769623673487,0.26501506,3014.3,3013.1,0.26919117]
[1769623676295,0.26501506,3014.3,3012.0,4.91575389]
[1769623676296,0.00375662,3014.3,3013.4,0.26694104]
[1769623678392,0.26365208,3014.3,3013.4,0.26694104]
[1769623678594,0.26365208,3014.3,3013.1,0.26694104]
[1769623678988,0.00375662,3014.3,3013.1,0.26694104]
[1769623679391,0.00375662,3014.3,3013.4,0.26694104]
[1769623682897,0.26365208,3014.3,3013.3,0.16615]
[1769623683103,0.26365208,3014.3,3013.1,0.26694104]
[1769623683503,0.26365208,3014.3,3012.8,0.26694104]
[1769623683698,0.26365208,3014.3,3011.7,1.59180242]
[1769623683699,0.25989546,3013.4,3012.1,0.26694104]
[1769623684306,0.25989546,3013.6,3012.1,0.26694104]
[1769623685200,0.25989546,3013.6,3011.9,0.26694104]
[1769623686005,0.26365208,3014.3,3012.7,1.58787977]
[1769623686307,0.26365208,3014.3,3012.5,0.16619]
[1769623687414,0.25989546,3014.1,3012.6,0.26694104]
[1769623687614,3.58289546,3014.0,3012.6,0.26694104]
[1769623687820,0.25989546,3013.9,3012.6,0.26694104]
[1769623688017,0.25989546,3013.9,3011.8,0.16623]
[1769623688320,0.25989546,3013.7,3012.3,0.26694104]
[1769623688522,0.25989546,3013.5,3012.3,0.26694104]
[1769623690423,0.25989546,3013.5,3011.9,0.26694104]
[1769623692314,8.51589546,3013.4,3011.9,0.26694104]
[1769623692515,0.25989546,3013.4,3011.9,0.26694104]
[1769623692721,3.323,3013.3,3011.9,0.26694104]
[1769623692919,0.25989546,3013.3,3011.9,0.26694104]
[1769623693618,0.25989546,3013.9,3011.9,0.26694104]
[1769623693820,0.25989546,3013.9,3012.2,0.26694104]
[1769623695219,0.25989546,3013.9,3012.3,0.26694104]
[1769623695818,0.25989546,3013.7,3012.3,0.26694104]
[1769623696219,0.25989546,3014.0,3012.3,0.26694104]
[1769623696420,0.25989546,3013.8,3012.3,0.26694104]
[1769623698029,5.18289546,3013.7,3012.3,0.26694104]
[1769623698222,0.25989546,3013.7,3012.3,0.26694104]
[1769623698424,4.922,3013.6,3012.3,0.26694104]
[1769623698625,0.25989546,3013.7,3012.4,0.26694104]
[1769623698820,4.921,3013.5,3012.4,0.26694104]
[1769623699325,0.25989546,3013.7,3012.4,0.26694104]
[1769623699832,4.92,3013.6,3012.4,0.26694104]
[1769623700134,0.25989546,3013.7,3012.4,0.26694104]
[1769623700433,5.17789546,3013.6,3012.4,0.26694104]
[1769623700934,4.917,3013.5,3012.4,0.26694104]
[1769623701132,0.25989546,3013.6,3012.5,0.26694104]
[1769623701431,3.58289546,3013.9,3012.5,0.26694104]
[1769623701631,4.917,3013.8,3012.5,0.26694104]
[1769623702024,5.17689546,3013.8,3012.5,0.26694104]
[1769623702930,0.25989546,3013.7,3012.5,0.26694104]
[1769623703129,4.913,3013.6,3012.5,0.26694104]
[1769623703330,0.25989546,3013.6,3012.5,0.26694104]
[1769623703538,8.49489546,3013.5,3012.5,0.26694104]
[1769623704133,3.58289546,3013.5,3012.5,0.26694104]
[1769623704329,8.49489546,3013.5,3012.5,0.26694104]
[1769623705535,0.24792008,3013.4,3012.4,0.1662]
[1769623705839,0.24792008,3013.4,3012.4,0.40499755]
[1769623707434,0.23383929,3013.2,3012.0,0.24132756]
[1769623707733,0.23383929,3013.2,3012.0,0.40754756]
[1769623707937,0.23383929,3013.2,3012.1,0.24132756]
[1769623708434,0.23383929,3013.2,3012.1,0.40753756]
[1769623708639,3.55683929,3013.5,3012.3,0.24132756]
[1769623708841,4.91,3013.2,3012.3,0.24132756]
[1769623709441,3.55683929,3013.5,3012.3,0.24132756]
[1769623709643,3.323,3013.5,3012.4,0.24132756]
[1769623709843,3.323,3013.5,3012.5,0.24132756]
[1769623710037,8.231,3013.5,3012.5,0.24132756]
[1769623710232,0.23383929,3013.8,3012.5,0.24132756]
[1769623710542,8.231,3013.7,3012.6,0.24132756]
[1769623710741,0.23383929,3013.6,3012.6,0.24132756]
[1769623713746,0.23383929,3013.6,3012.5,0.16619]
[1769623719747,4.903,3013.5,3012.6,0.24132756]
[1769623719935,0.23383929,3013.5,3012.6,0.24132756]
[1769623720136,4.902,3013.4,3012.6,0.24132756]
[1769623720846,5.13583929,3013.4,3012.6,0.24132756]
[1769623721048,0.23383929,3013.3,3012.3,0.24132756]
[1769623721344,0.23383929,3013.1,3012.3,0.24132756]
[1769623721647,0.23383929,3013.1,3012.1,0.24132756]
[1769623721848,0.23383929,3012.8,3011.7,0.00392265]
[1769623722147,0.23383929,3012.6,3011.1,0.24132756]
[1769623722344,0.23383929,3012.4,3011.1,0.24132756]
[1769623722653,0.23383929,3012.2,3011.1,0.24132756]
[1769623722854,0.23383929,3012.0,3011.1,0.24132756]
[1769623723042,0.23770935,3012.0,3011.1,0.00402967]
[1769623723247,3.56070935,3012.0,3011.1,0.00402967]
[1769623724041,0.23383929,3011.9,3009.9,0.16634]
[1769623724246,0.23383929,3011.1,3009.0,11.5496046]
[1769623724445,0.23383929,3011.1,3009.3,0.16637]
[1769623724647,0.00387006,3012.0,3008.8,8.53237542]
[1769623724648,0.23383929,3011.9,3009.6,1.58787977]
[1769623724849,0.23383929,3011.9,3010.1,1.58787977]
[1769623725055,0.00387006,3012.0,3010.4,0.16631]
[1769623725547,0.00387006,3012.0,3010.1,1.5913758]
[1769623725548,0.23770935,3012.0,3010.6,0.1663]
[1769623725948,0.23770935,3012.0,3010.1,0.00349603]
[1769623726253,0.23770935,3012.0,3010.2,0.24132756]
[1769623728055,0.23383929,3011.8,3010.2,0.24132756]
[1769623728457,3.55783929,3011.7,3010.4,0.24132756]
[1769623728751,0.23383929,3011.3,3010.1,0.00349603]
[1769623730255,0.23383929,3011.1,3010.1,0.00349603]
[1769623731145,8.44583929,3011.1,3010.1,0.00349603]
[1769623731346,0.23383929,3011.0,3010.1,0.00349603]
[1769623732158,0.23383929,3011.0,3009.6,0.16635]
[1769623732852,0.23383929,3011.0,3009.2,0.24132756]
[1769623733155,0.23383929,3010.8,3009.2,0.24453748]
[1769623733549,0.23383929,3010.3,3009.2,0.00320992]
[1769623733754,0.23383929,3010.3,3008.8,0.24132756]
[1769623734151,0.23383929,3010.3,3008.6,0.24132756]
[1769623734753,0.23383929,3010.3,3008.7,0.25121957]
[1769623734949,0.23383929,3010.3,3008.8,0.25121957]
[1769623735152,0.23383929,3010.3,3009.0,0.25121957]
[1769623735559,8.47254467,3010.6,3009.2,0.25121957]
[1769623736663,0.26254467,3010.6,3009.3,0.25121957]
[1769623738361,0.26254467,3010.6,3009.4,0.25121957]
[1769623738563,0.26254467,3010.9,3009.7,0.25121957]
[1769623740956,0.26254467,3010.9,3009.8,0.25121957]
[1769623741161,0.26254467,3011.2,3010.0,0.25121957]
[1769623741659,0.26254467,3011.2,3009.5,0.16636]
[1769623741864,0.26254467,3011.2,3009.5,0.41757957]
[1769623742264,0.26254467,3011.2,3009.7,0.25121957]
[1769623742767,0.26254467,3011.0,3009.7,0.25121957]
[1769623745359,0.26254467,3010.9,3009.7,0.25121957]
[1769623746863,0.26254467,3012.5,3011.1,0.25121957]
[1769623747066,0.26254467,3012.5,3010.0,1.59177638]
[1769623747067,0.26254467,3012.3,3011.2,0.25121957]
[1769623747270,0.26254467,3012.3,3011.2,0.41747957]
[1769623747562,0.26254467,3012.7,3011.3,0.25121957]
[1769623747960,0.26523521,3012.7,3011.3,0.25441185]
[1769623752963,0.26523521,3012.7,3011.4,0.25121957]
[1769623753169,0.26523521,3012.7,3011.5,0.25121957]
[1769623755269,0.26523521,3012.7,3011.4,0.16625]
[1769623758665,0.26523521,3012.7,3011.3,0.00319228]
[1769623760873,0.26254467,3012.5,3011.3,0.00319228]
[1769623762076,0.26254467,3012.5,3011.3,0.25441185]
[1769623763274,0.26254467,3012.5,3011.4,0.41746957]
[1769623763778,0.26254467,3012.5,3011.5,0.25121957]
[1769623765077,0.00269054,3012.7,3011.6,0.22720807]
[1769623765282,0.00269054,3012.7,3011.9,0.22720807]
[1769623767586,0.00269054,3012.7,3012.0,0.21964415]
[1769623767785,0.2351552,3013.1,3012.0,0.21964415]
[1769623767978,0.22866314,3013.4,3012.1,0.21964415]
[1769623768681,0.2320607,3013.4,3012.1,0.21964415]
[1769623774989,0.4614762,3013.3,3012.1,0.21964415]
[1769623775190,0.69057425,3013.2,3012.1,0.21964415]
[1769623775385,0.22866314,3013.2,3012.1,0.21964415]
[1769623776191,0.69118434,3013.1,3012.1,0.21964415]
[1769623776392,0.22866314,3013.1,3012.1,0.21964415]
[1769623777884,0.22866314,3013.1,3012.0,0.16622]